bitfinex/quotes_ETHUSD_20240924
["timestamp","ask_amount","ask_price","bid_price","bid_amount"]
[1727185141913,0.79142852,2645.2,2644.9,2.2643]
[1727185142215,0.79142852,2645.3,2644.9,2.2643]
[1727185142362,0.79142852,2645.4,2644.9,2.2643]
[1727185142571,0.79142852,2645.4,2645.0,0.604519]
[1727185142760,0.79142852,2645.4,2645.0,4.385199]
[1727185143462,0.79142852,2645.4,2645.0,0.604519]
[1727185144006,0.79142852,2645.3,2645.0,0.604519]
[1727185144162,0.79142852,2645.4,2645.0,0.604519]
[1727185144361,0.79142852,2645.4,2645.1,0.6649649]
[1727185147174,0.79142852,2645.5,2645.1,0.6649649]
[1727185147410,0.79142852,2645.4,2645.1,0.6649649]
[1727185147875,0.79142852,2645.5,2645.1,0.6649649]
[1727185148078,0.79142852,2645.5,2645.2,0.07560101]
[1727185148277,0.79142852,2645.5,2645.2,0.5277276]
[1727185148541,0.79142852,2645.6,2645.2,0.5277276]
[1727185148694,1.58302277,2645.9,2645.3,4.54446]
[1727185148695,0.79142852,2645.8,2645.3,4.54446]
[1727185148914,0.79142852,2645.9,2645.3,4.54446]
[1727185149106,0.79142852,2645.8,2645.4,0.454446]
[1727185149278,0.79142852,2645.8,2645.4,4.234576]
[1727185149912,0.79142852,2645.8,2645.4,0.454446]
[1727185150071,0.79142852,2645.8,2645.5,0.4999026]
[1727185150268,0.79142852,2645.8,2645.5,4.2797626]
[1727185150479,1.58302277,2646.1,2645.8,0.7643]
[1727185150480,0.79142852,2646.1,2645.8,0.7643]
[1727185150683,0.80639362,2646.2,2645.8,0.7643]
[1727185150864,0.80639362,2646.2,2645.9,0.454401]
[1727185151278,0.0149651,2646.2,2645.9,4.233811]
[1727185151513,0.0149651,2646.2,2645.9,0.454401]
[1727185151680,0.80639362,2646.2,2645.8,3.77954]
[1727185151878,0.80639362,2646.2,2645.9,4.54363]
[1727185151879,0.0149651,2646.2,2645.9,4.54363]
[1727185152328,0.0149651,2646.2,2645.9,0.7643]
[1727185152480,0.0149651,2646.2,2646.0,0.454378]
[1727185152710,0.0149651,2646.2,2646.0,4.233658]
[1727185152982,0.0149651,2646.2,2646.1,0.07557388]
[1727185153295,0.0149651,2646.2,2646.0,4.233658]
[1727185153296,0.0149651,2646.2,2646.0,0.454378]
[1727185154031,0.0149651,2646.2,2646.1,0.4998088]
[1727185154196,0.0149651,2646.2,2646.0,0.454378]
[1727185154993,0.0149651,2646.2,2645.9,4.54373]
[1727185155193,0.0149651,2646.2,2645.9,0.7643]
[1727185156659,0.0149651,2646.2,2646.0,3.77926]
[1727185157140,0.0149651,2646.2,2645.9,4.54372]
[1727185157740,0.0149651,2646.2,2646.0,0.454372]
[1727185158949,0.0149651,2646.2,2645.6,0.7643]
[1727185159107,3.77931,2646.0,2645.6,0.7643]
[1727185159326,3.77931,2646.0,2645.3,4.54449]
[1727185159634,0.79142852,2646.1,2645.4,0.454449]
[1727185159803,0.79142852,2646.1,2645.4,4.234569]
[1727185160003,5.7455861,2646.2,2645.8,0.7643]
[1727185160004,0.80639362,2646.2,2645.8,0.7643]
[1727185160241,0.0149651,2646.2,2645.9,0.07557994]
[1727185160407,0.0149651,2646.2,2646.0,0.07557794]
[1727185160603,0.0149651,2646.2,2646.0,3.85485794]
[1727185160905,0.0149651,2646.2,2645.9,3.77933]
[1727185161134,0.0149651,2646.2,2645.9,4.233693]
[1727185162521,0.0149651,2646.2,2645.9,0.454363]
[1727185163145,0.0149651,2646.2,2645.8,0.7643]
[1727185164038,0.0149651,2646.2,2645.8,4.54377]
[1727185165746,0.0149651,2646.2,2645.5,7.55977]
[1727185165943,3.85685003,2646.1,2645.4,4.0]
[1727185166164,3.77978,2645.7,2645.4,4.0]
[1727185166304,4.54429,2645.6,2645.4,4.0]
[1727185166508,3.78,2645.5,2645.4,4.0]
[1727185166939,4.54429,2645.6,2645.4,4.0]
[1727185167641,4.54429,2645.6,2644.9,5.54502]
[1727185167804,4.54429,2645.6,2644.9,6.477622]
[1727185168247,0.7644,2645.6,2644.9,2.696902]
[1727185168448,0.7644,2645.6,2644.9,1.7643]
[1727185169157,4.50135077,2645.5,2644.9,1.0]
[1727185169311,3.78071,2645.0,2644.9,1.0]
[1727185169509,5.09511,2645.0,2644.9,1.0]
[1727185169739,6.44750586,2645.0,2644.9,1.0]
[1727185170051,8.42490539,2645.0,2644.9,1.0]
[1727185170250,1.3144,2645.0,2644.9,1.0]
[1727185170548,4.54511,2645.0,2644.9,1.0]
[1727185171410,5.88531853,2645.0,2644.9,1.0]
[1727185171813,5.09511,2645.0,2644.9,1.0]
[1727185172250,7.65631249,2645.0,2644.9,1.0]
[1727185173108,6.86610396,2645.0,2644.9,1.0]
[1727185176969,4.33071,2645.0,2644.9,1.0]
[1727185178527,7.33071,2645.0,2644.9,1.0]
[1727185178725,8.12091853,2645.0,2644.9,1.0]
[1727185178949,8.517901,2645.0,2644.9,1.0]
[1727185179171,7.33071,2645.0,2644.9,1.0]
[1727185179371,8.80064038,2645.0,2644.9,1.0]
[1727185179929,10.40797123,2645.0,2644.9,1.0]
[1727185180176,11.59246707,2645.0,2644.9,1.0]
[1727185180982,4.3678,2644.9,2643.8,0.0234939]
[1727185181188,12.00694003,2643.9,2643.8,0.0234939]
[1727185181467,12.7966193,2643.9,2643.8,0.0234939]
[1727185181829,12.00694003,2643.9,2643.8,0.0234939]
[1727185182076,13.1910652,2643.9,2643.8,0.0234939]
[1727185182373,14.84849147,2643.9,2643.8,0.0234939]
[1727185182688,15.24374339,2643.9,2643.8,0.0234939]
[1727185182975,16.03381639,2643.9,2643.8,0.0234939]
[1727185183281,16.03381639,2643.9,2643.0,0.038459]
[1727185183282,8.15123,2643.1,2643.0,0.038459]
[1727185183577,13.20153303,2643.1,2643.0,0.038459]
[1727185184077,14.3840345,2643.1,2643.0,0.038459]
[1727185184253,14.3840345,2643.1,2642.2,0.038459]
[1727185184254,5.15238,2642.3,2642.2,0.038459]
[1727185184570,8.15238,2642.3,2642.2,0.038459]
[1727185187733,9.731747,2642.3,2642.2,0.038459]
[1727185192372,8.15238,2642.3,2642.2,0.038459]
[1727185193901,3.78458,2642.3,2642.2,0.038459]
[1727185194721,3.78444,2642.4,2642.2,0.038459]
[1727185195228,3.78458,2642.3,2642.2,0.038459]
[1727185196023,3.78444,2642.4,2642.2,0.038459]
[1727185196578,3.78458,2642.3,2642.2,0.038459]
[1727185199882,3.78444,2642.4,2642.2,0.038459]
[1727185200078,3.78444,2642.4,2642.2,0.866259]
[1727185200520,3.78458,2642.3,2642.2,0.038459]
[1727185200820,3.78416,2642.6,2642.2,0.038459]
[1727185201025,3.78432,2642.5,2642.2,0.038459]
[1727185201195,3.78409,2642.7,2642.3,0.8278]
[1727185201428,3.78395,2642.8,2642.3,0.8278]
[1727185201749,3.78395,2642.8,2642.2,0.038459]
[1727185201750,3.78458,2642.3,2642.2,0.038459]
[1727185201956,3.87920456,2642.3,2642.2,0.038459]
[1727185202123,3.78458,2642.3,2642.2,0.038459]
[1727185202322,3.87920395,2642.3,2642.2,0.038459]
[1727185202527,4.33458,2642.3,2642.2,0.038459]
[1727185202751,5.146481,2642.3,2642.2,0.038459]
[1727185203448,3.78458,2642.3,2642.2,0.038459]
[1727185203679,4.33458,2642.3,2642.2,0.038459]
[1727185204560,3.78387,2642.8,2642.2,0.038459]
[1727185204858,3.78458,2642.3,2642.2,0.038459]
[1727185205353,8.346183,2642.3,2642.2,0.038459]
[1727185205527,7.541483,2642.3,2642.2,0.038459]
[1727185205855,3.78458,2642.3,2642.2,0.038459]
[1727185206061,3.78445,2642.4,2642.2,0.038459]
[1727185206352,3.0,2642.6,2642.2,0.038459]
[1727185206353,3.78458,2642.3,2642.2,0.038459]
[1727185207461,3.78411,2642.7,2642.2,0.038459]
[1727185207673,3.78382,2642.9,2642.4,0.8024]
[1727185207952,0.8047,2643.3,2642.5,3.8598802]
[1727185208115,3.78337,2643.2,2642.6,0.46622802]
[1727185208317,3.78347,2643.1,2642.6,0.46622802]
[1727185208875,3.78361,2643.0,2642.6,0.46622802]
[1727185209075,3.78359,2643.0,2642.4,4.58671]
[1727185209591,3.78331,2643.2,2642.6,4.58642]
[1727185209752,3.78318,2643.3,2642.7,4.620953]
[1727185209950,6.71422822,2643.9,2642.8,0.8024]
[1727185209951,3.78294,2643.5,2642.8,0.8024]
[1727185210156,3.78294,2643.5,2643.0,0.8024]
[1727185210553,3.78303,2643.4,2643.0,0.8024]
[1727185210872,3.78325,2643.3,2643.0,0.8024]
[1727185211047,3.78343,2643.1,2643.0,0.8024]
[1727185211582,7.56669,2643.2,2643.0,0.8024]
[1727185211797,3.78343,2643.1,2643.0,0.8024]
[1727185212242,3.78373,2642.9,2642.5,0.8024]
[1727185212644,3.78402,2642.7,2642.5,0.8024]
[1727185213283,7.56816,2642.7,2642.5,0.8024]
[1727185213444,3.78415,2642.6,2642.5,0.8024]
[1727185213645,4.33458,2642.3,2642.2,0.038459]
[1727185213848,8.99613003,2642.3,2642.2,0.038459]
[1727185215680,11.99613003,2642.3,2642.2,0.038459]
[1727185217914,8.13928,2642.3,2642.2,0.038459]
[1727185218077,7.33458,2642.3,2642.2,0.038459]
[1727185218822,12.30333203,2642.3,2642.2,0.038459]
[1727185218995,13.08493203,2642.3,2642.2,0.038459]
[1727185219621,13.08493203,2642.3,2641.4,0.038459]
[1727185219622,8.11732,2641.5,2641.4,0.038459]
[1727185219778,11.97417003,2641.5,2641.4,0.038459]
[1727185219981,13.55014603,2641.5,2641.4,0.038459]
[1727185221427,8.911696,2641.5,2641.4,0.038459]
[1727185221720,3.78572,2641.5,2641.4,0.038459]
[1727185222125,3.78559,2641.6,2641.4,0.038459]
[1727185222428,3.78572,2641.5,2641.4,0.038459]
[1727185222922,2.78572,2641.5,2641.4,0.038459]
[1727185223132,3.78572,2641.5,2641.4,0.038459]
[1727185223416,5.092851,2641.5,2641.4,0.038459]
[1727185223626,4.33572,2641.5,2641.4,0.038459]
[1727185226429,3.78572,2641.5,2641.4,0.038459]
[1727185226592,3.78572,2641.5,2641.4,0.798759]
[1727185227010,3.78559,2641.6,2641.4,0.798759]
[1727185227290,3.7856,2641.6,2641.4,0.798759]
[1727185227542,3.7856,2641.6,2641.4,0.038459]
[1727185227543,3.78572,2641.5,2641.4,0.038459]
[1727185228415,4.33572,2641.5,2641.4,0.038459]
[1727185229716,12.95935203,2641.5,2641.4,0.038459]
[1727185230046,14.43247919,2641.5,2641.4,0.038459]
[1727185230418,11.97475003,2641.1,2641.0,0.038]
[1727185230612,17.94528468,2641.1,2641.0,0.038]
[1727185230811,17.94528468,2641.1,2640.6,0.038459]
[1727185230812,5.12927,2640.7,2640.6,0.038459]
[1727185231012,13.66387411,2640.7,2640.6,0.038459]
[1727185231211,13.96493101,2640.7,2640.6,0.038459]
[1727185231460,13.56795058,2640.7,2640.6,0.038459]
[1727185231668,13.96493101,2640.7,2640.6,0.038459]
[1727185231818,13.96493101,2640.7,2639.5,0.8105]
[1727185231819,3.78821,2639.8,2639.5,0.8105]
[1727185232141,3.78821,2639.8,2639.5,0.8290512]
[1727185232316,3.78821,2639.8,2639.6,0.06938239]
[1727185233340,3.78821,2639.8,2639.6,0.08793359]
[1727185233519,3.78807,2639.9,2639.6,0.08793359]
[1727185233865,3.78825,2639.8,2639.6,0.08793359]
[1727185234060,3.7883,2639.7,2639.6,0.08793359]
[1727185235759,4.3383,2639.7,2639.6,0.08793359]
[1727185236192,5.24567325,2639.7,2639.6,0.08793359]
[1727185236409,12.89493497,2639.7,2639.6,0.08793359]
[1727185236701,12.80020503,2639.7,2639.6,0.0185512]
[1727185236880,8.943355,2639.7,2639.6,0.0185512]
[1727185238100,4.3383,2639.7,2639.6,0.0185512]
[1727185238794,4.3383,2639.7,2639.6,0.08942424]
[1727185239155,0.55,2639.7,2639.6,0.08942424]
[1727185239497,4.3383,2639.7,2639.6,0.08942424]
[1727185240059,4.3383,2639.7,2639.6,0.0185512]
[1727185240358,5.150955,2639.7,2639.6,0.0185512]
[1727185241359,5.150955,2639.7,2639.6,0.08935249]
[1727185241567,8.150955,2639.7,2639.6,0.0185512]
[1727185242990,8.150955,2639.7,2639.6,0.09033066]
[1727185243161,3.55,2639.6,2639.3,0.0398359]
[1727185243487,4.33873,2639.4,2639.3,0.0398359]
[1727185243875,11.19558003,2639.4,2639.3,0.0398359]
[1727185244082,11.98798003,2639.4,2639.3,0.0398359]
[1727185244424,11.98798003,2639.4,2638.5,0.0398359]
[1727185244426,4.33988,2638.6,2638.5,0.0398359]
[1727185244564,0.55,2638.6,2638.5,0.0398359]
[1727185245089,3.7894,2639.0,2638.5,0.0398359]
[1727185245264,3.78933,2639.0,2638.5,0.0398359]
[1727185245599,0.55,2638.7,2638.5,0.0398359]
[1727185246530,0.55,2638.9,2638.5,0.0398359]
[1727185246892,6.78893,2639.3,2638.7,3.78962]
[1727185247104,3.78905,2639.2,2638.6,4.60688]
[1727185247296,3.78905,2639.2,2638.6,8.39667]
[1727185247506,3.78905,2639.2,2638.6,9.24032059]
[1727185247920,3.78925,2639.1,2638.6,0.8171]
[1727185248104,0.55,2639.2,2638.7,3.78965]
[1727185248428,4.33905,2639.2,2638.7,4.63335859]
[1727185248585,0.55,2639.2,2638.8,3.78955]
[1727185248919,4.33903,2639.2,2638.7,0.84363859]
[1727185249216,4.33903,2639.2,2638.6,4.60686]
[1727185249217,0.55,2639.2,2638.8,4.33455986]
[1727185249424,6.78866,2639.5,2639.0,3.7893]
[1727185249587,3.0,2639.5,2639.1,0.8171]
[1727185249786,3.78853,2639.6,2639.1,4.60623]
[1727185250721,3.78812,2639.9,2639.1,1.656659]
[1727185250893,3.78797,2640.0,2639.5,3.78858]
[1727185251385,3.78781,2640.1,2639.6,0.87679963]
[1727185252224,3.7876,2640.2,2639.6,0.87679963]
[1727185253091,3.78774,2640.1,2639.7,3.78821]
[1727185253616,3.78775,2640.1,2639.8,0.0595459]
[1727185253825,4.33802,2639.9,2639.8,0.0595459]
[1727185254083,0.55,2640.0,2639.9,0.0595459]
[1727185254251,0.55,2640.0,2639.6,0.8171]
[1727185254436,0.55,2640.0,2639.9,0.0595459]
[1727185254631,0.55,2640.0,2639.6,0.8171]
[1727185254861,0.55,2640.3,2639.9,0.0595459]
[1727185255135,3.78759,2640.2,2639.7,3.78818]
[1727185255366,0.55,2640.1,2640.0,0.0595459]
[1727185255675,0.55,2640.1,2640.0,0.05924866]
[1727185255846,0.55,2640.1,2639.7,3.78818]
[1727185256053,0.55,2640.1,2640.0,0.05924866]
[1727185256373,0.55,2640.2,2639.8,3.78805]
[1727185256540,4.33759,2640.2,2640.0,0.05924866]
[1727185256739,4.33759,2640.2,2639.8,3.78816]
[1727185256959,4.33759,2640.2,2640.1,0.05924866]
[1727185257164,3.0,2640.5,2639.9,3.78789]
[1727185257335,3.78664,2640.9,2640.2,3.78757]
[1727185257542,3.78664,2640.9,2640.4,3.78719]
[1727185258086,3.78664,2640.9,2640.5,0.05924866]
[1727185258087,3.88142172,2640.8,2640.5,0.05924866]
[1727185258254,3.88156229,2640.7,2640.2,3.78748]
[1727185258447,3.78716,2640.5,2640.1,0.8171]
[1727185259080,3.78716,2640.5,2639.8,0.8171]
[1727185259081,3.78769,2640.2,2639.8,0.8171]
[1727185259285,3.78757,2640.3,2639.8,4.60522]
[1727185259442,0.55,2640.4,2639.9,3.788]
[1727185259789,0.55,2640.4,2640.0,3.78786]
[1727185260149,7.33706,2640.6,2640.1,3.78773]
[1727185260483,0.55,2640.4,2640.0,3.78782]
[1727185260689,0.55,2640.4,2640.1,3.78772]
[1727185260850,0.55,2640.4,2639.9,3.78792]
[1727185261179,0.55,2640.4,2639.9,3.78796]
[1727185261378,0.55,2640.4,2639.9,0.9232478]
[1727185261690,0.55,2640.5,2640.1,3.78762]
[1727185262654,0.09469279,2640.4,2639.9,3.78792]
[1727185262987,0.09469279,2640.4,2640.0,3.78784]
[1727185262988,3.88201279,2640.4,2640.0,3.78784]
[1727185263294,4.33718,2640.5,2640.0,3.78785]
[1727185263489,4.33718,2640.5,2639.9,3.78792]
[1727185263663,3.88201284,2640.4,2639.9,7.57586]
[1727185264009,7.66939284,2640.4,2639.9,3.78792]
[1727185264192,3.78775,2640.1,2639.8,0.8171]
[1727185264344,0.55,2639.9,2639.4,0.7723]
[1727185264548,3.78824,2639.8,2639.4,0.7723]
[1727185264785,4.33814,2639.9,2639.4,4.56096]
[1727185265813,3.78914,2639.2,2638.8,0.7723]
[1727185265961,3.78869,2639.5,2638.8,0.7723]
[1727185266163,3.0,2639.6,2639.2,3.78897]
[1727185266466,0.55,2639.7,2639.3,3.78886]
[1727185266780,0.55,2639.8,2639.4,3.78866]
[1727185266960,3.78846,2639.6,2639.2,0.7723]
[1727185267158,0.55,2639.5,2639.0,0.7723]
[1727185267362,0.55,2639.6,2639.2,3.78892]
[1727185267602,4.33822,2639.8,2639.3,4.167652]
[1727185267807,4.33822,2639.8,2639.3,3.78876]
[1727185267967,0.55,2639.8,2639.3,3.78876]
[1727185268163,0.55,2639.6,2639.0,0.7723]
[1727185268413,0.48884,2639.6,2639.0,0.7723]
[1727185268560,0.55,2639.8,2639.2,3.78889]
[1727185268561,4.33826,2639.8,2639.2,3.78889]
[1727185268916,0.55,2639.8,2639.3,3.78877]
[1727185269078,3.78841,2639.7,2639.1,3.78913]
[1727185269277,3.78862,2639.5,2639.1,0.456143]
[1727185269478,3.78862,2639.5,2639.0,4.56153]
[1727185269803,0.8321,2640.0,2639.2,3.78894]
[1727185269804,4.33823,2639.8,2639.2,3.78894]
[1727185270166,0.8321,2640.0,2639.0,0.7723]
[1727185270362,9.22600609,2640.5,2639.8,3.78809]
[1727185270363,4.57836303,2640.4,2639.8,3.78809]
[1727185270589,4.61934,2640.5,2639.8,3.78809]
[1727185270794,4.57795303,2640.7,2640.1,3.78771]
[1727185271103,0.8321,2640.8,2640.1,3.78771]
[1727185271104,3.78702,2640.6,2640.1,3.78771]
[1727185271466,5.40990303,2640.8,2640.0,0.7723]
[1727185271666,3.78662,2640.9,2640.3,3.78737]
[1727185271885,3.78677,2640.8,2640.3,3.78737]
[1727185272101,7.5733,2640.9,2640.3,3.78737]
[1727185272399,3.78662,2640.9,2640.3,7.57472]
[1727185272704,3.78662,2640.9,2640.4,3.7873]
[1727185272920,3.78662,2640.9,2640.3,3.78735]
[1727185273124,0.55,2640.8,2640.3,3.78733]
[1727185273282,0.55,2640.8,2640.4,3.78721]
[1727185273687,0.82898303,2641.0,2640.4,3.78721]
[1727185273688,0.82898303,2641.0,2640.4,0.757454]
[1727185273914,3.82444,2641.0,2640.5,0.7723]
[1727185274116,0.038,2641.0,2640.5,4.55933]
[1727185274492,0.038,2641.0,2640.7,3.78685]
[1727185275020,0.038,2641.0,2640.6,3.7869]
[1727185275794,0.038,2641.0,2640.7,3.78681]
[1727185275995,0.038,2641.0,2640.5,0.7723]
[1727185276395,0.038,2641.0,2640.6,3.78692]
[1727185277484,0.038,2641.0,2640.5,0.7723]
[1727185277824,0.038,2641.0,2640.9,4.55888]
[1727185279223,0.038,2641.0,2640.9,7.55888]
[1727185279421,0.038,2641.0,2640.9,7.60919287]
[1727185280387,0.038,2641.0,2640.9,4.60919287]
[1727185284305,0.038,2641.0,2640.9,7.68490681]
[1727185284619,0.0398359,2641.8,2641.7,4.55774]
[1727185285131,0.0398359,2641.8,2641.7,4.60786893]
[1727185291041,0.0398359,2641.8,2641.7,3.83556893]
[1727185292417,3.78444,2642.4,2641.7,3.83556893]
[1727185292418,0.027777,2642.4,2641.7,3.83556893]
[1727185292739,0.55,2642.3,2641.8,4.16870689]
[1727185293156,4.33465,2642.3,2641.9,0.04908152]
[1727185293318,0.55,2642.3,2641.9,3.83421152]
[1727185293511,0.027777,2642.4,2641.9,3.83421152]
[1727185293707,0.55,2642.3,2641.9,3.83421152]
[1727185294350,0.577777,2642.4,2642.1,3.78482]
[1727185294644,0.577777,2642.4,2642.2,3.83375598]
[1727185294645,0.027777,2642.4,2642.2,3.83375598]
[1727185294850,0.027777,2642.4,2642.3,4.1679556]
[1727185295009,0.027777,2642.4,2642.3,4.99580648]
[1727185295628,0.027777,2642.4,2642.3,0.43242648]
[1727185295823,0.027777,2642.4,2642.3,0.04905088]
[1727185296135,0.027777,2642.4,2642.1,3.78478]
[1727185296469,0.027777,2642.4,2642.2,3.78472]
[1727185296658,0.027777,2642.4,2642.2,3.83354621]
[1727185297871,0.027777,2642.4,2642.2,0.04882621]
[1727185298036,0.027777,2642.4,2642.0,3.78487]
[1727185298229,0.027777,2642.4,2642.3,0.04886706]
[1727185298431,0.027777,2642.4,2642.0,3.78487]
[1727185298843,0.027777,2642.4,2642.1,0.04886706]
[1727185299282,3.78465,2642.3,2642.1,0.04886706]
[1727185299565,3.78465,2642.3,2641.8,3.78519]
[1727185299566,0.55,2642.3,2641.8,3.78519]
[1727185299767,0.577777,2642.3,2642.2,0.04891811]
[1727185299967,0.027777,2642.3,2642.0,3.78499]
[1727185300333,0.027777,2642.3,2642.2,3.78472]
[1727185300863,0.027777,2642.3,2642.2,4.61243811]
[1727185305488,3.7863,2642.7,2642.2,8.39706811]
[1727185305489,7.5703,2642.7,2642.2,8.39706811]
[1727185305647,0.55,2642.7,2642.3,3.78449]
[1727185305847,0.55,2642.7,2642.3,4.21774532]
[1727185306279,4.58947,2643.0,2642.5,3.78428]
[1727185306484,3.78374,2642.9,2642.5,3.78428]
[1727185306688,3.78374,2642.9,2642.6,0.04882621]
[1727185306873,4.58938,2643.0,2642.6,0.04882621]
[1727185307654,4.58938,2643.0,2642.4,3.7844]
[1727185307655,3.78387,2642.8,2642.4,3.7844]
[1727185307980,3.78387,2642.8,2642.7,0.04882621]
[1727185308187,3.78387,2642.8,2642.4,3.7844]
[1727185308485,3.78409,2642.7,2642.2,4.5635]
[1727185308781,3.78409,2642.7,2641.8,3.14224523]
[1727185308782,3.87879964,2642.6,2642.5,0.04873942]
[1727185308980,3.78448,2642.4,2641.9,0.7724]
[1727185309144,3.78479,2642.2,2641.7,4.78533]
[1727185309345,3.78479,2642.2,2641.7,5.719652]
[1727185309571,3.78479,2642.2,2641.8,0.04874963]
[1727185309850,3.78479,2642.2,2641.8,3.78527]
[1727185310076,7.56908,2642.4,2641.9,0.04874963]
[1727185310297,0.55,2642.3,2641.9,3.83389963]
[1727185310505,0.55,2642.3,2641.9,3.83388963]
[1727185310799,0.55,2642.3,2641.9,4.78923179]
[1727185311404,0.55,2642.3,2641.9,1.00409179]
[1727185311577,4.33467,2642.3,2641.9,1.00409179]
[1727185311779,4.33467,2642.3,2641.9,0.04874963]
[1727185313385,0.55,2642.3,2641.9,0.04874963]
[1727185313790,0.55,2642.3,2641.9,3.78508]
[1727185313976,0.55,2642.3,2642.0,0.04874963]
[1727185314692,7.5696,2642.2,2641.7,5.28543]
[1727185314893,3.7848,2642.2,2641.7,5.28543]
[1727185315189,3.7848,2642.2,2641.7,6.569765]
[1727185316075,3.78491,2642.1,2641.7,2.784335]
[1727185316624,3.78529,2641.8,2641.7,1.5]
[1727185317117,4.33529,2641.8,2641.7,1.5]
[1727185317403,6.02671131,2641.8,2641.7,1.5]
[1727185317609,8.06708022,2641.8,2641.7,1.5]
[1727185317768,7.97244194,2641.8,2641.7,1.5]
[1727185318414,6.7859674,2641.8,2641.7,1.5]
[1727185318598,7.57731099,2641.8,2641.7,1.5]
[1727185318816,6.7859674,2641.8,2641.7,1.5]
[1727185319329,7.97244194,2641.8,2641.7,1.5]
[1727185320394,5.93287805,2641.8,2641.7,1.5]
[1727185321026,5.14109,2641.8,2641.7,1.5]
[1727185321225,5.93287805,2641.8,2641.7,1.5]
[1727185322134,6.32756454,2641.8,2641.7,1.5]
[1727185322290,6.72305606,2641.8,2641.7,1.5]
[1727185322487,10.97182562,2641.8,2641.7,1.5]
[1727185322708,9.38985956,2641.8,2641.7,1.5]
[1727185323226,13.14205156,2641.8,2641.7,1.5]
[1727185323434,9.38985956,2641.8,2641.7,1.5]
[1727185323783,10.76687581,2641.8,2641.7,1.5]
[1727185323995,9.38985956,2641.8,2641.7,1.5]
[1727185324795,11.3708803,2641.8,2641.7,1.5]
[1727185325931,13.14188582,2641.8,2641.7,1.5]
[1727185326299,13.14188582,2641.8,2641.0,0.038]
[1727185326300,17.01033794,2641.8,2641.0,0.038]
[1727185326494,12.03685212,2641.1,2641.0,0.038]
[1727185326689,15.78894979,2641.1,2641.0,0.038]
[1727185326931,7.33644,2641.0,2640.9,1.0]
[1727185327135,9.54527419,2641.0,2640.9,1.0]
[1727185327292,14.29628782,2641.0,2640.9,1.0]
[1727185327493,10.54428537,2641.0,2640.9,1.0]
[1727185327735,12.52355124,2641.0,2640.9,1.0]
[1727185327936,9.75183391,2641.0,2640.9,1.0]
[1727185328140,9.75187439,2641.0,2640.9,1.0]
[1727185328430,9.75104009,2641.0,2640.9,1.0]
[1727185329234,7.61854,2641.0,2640.9,1.0]
[1727185329407,8.40973521,2641.0,2640.9,1.0]
[1727185329605,3.78644,2641.0,2640.9,1.0]
[1727185330403,4.33644,2641.0,2640.9,1.0]
[1727185331109,5.80834384,2641.0,2640.9,1.0]
[1727185332337,3.78644,2641.0,2640.9,1.0]
[1727185332702,3.78644,2641.0,2640.9,1.03878281]
[1727185332912,3.7863,2641.1,2640.9,1.03878281]
[1727185333458,3.78644,2641.0,2640.9,1.03878281]
[1727185333751,3.7863,2641.1,2640.9,1.03878281]
[1727185333936,7.57271,2641.1,2640.9,1.03878281]
[1727185334119,3.7863,2641.1,2640.9,1.03878281]
[1727185334518,3.78644,2641.0,2640.9,1.03878281]
[1727185334942,4.33644,2641.0,2640.9,1.03878281]
[1727185335148,5.980814,2641.0,2640.9,1.03878281]
[1727185335330,5.148714,2641.0,2640.9,1.0]
[1727185335870,9.77200921,2641.0,2640.9,1.0]
[1727185336151,8.980814,2641.0,2640.9,1.0]
[1727185336310,10.16764722,2641.0,2640.9,1.0]
[1727185336515,9.7704762,2641.0,2640.9,1.0]
[1727185336717,8.980814,2641.0,2640.9,1.0]
[1727185337218,10.16764722,2641.0,2640.9,1.0]
[1727185337953,10.56331409,2641.0,2640.9,1.0]
[1727185338658,10.56331409,2641.0,2640.9,0.962]
[1727185339351,8.980814,2641.0,2640.9,0.962]
[1727185340089,10.16408988,2641.0,2640.9,0.962]
[1727185340360,9.76941099,2641.0,2640.9,0.962]
[1727185342065,8.430814,2641.0,2640.9,0.962]
[1727185342768,6.78644,2641.0,2640.9,0.962]
[1727185343768,7.33644,2641.0,2640.9,0.962]
[1727185345170,11.20489212,2641.0,2640.9,0.962]
[1727185345339,7.33644,2641.0,2640.9,0.962]
[1727185346668,7.37444,2641.0,2640.9,0.962]
[1727185346839,8.490514,2641.0,2640.9,0.962]
[1727185347565,3.82444,2641.0,2640.9,0.962]
[1727185348863,4.37444,2641.0,2640.9,1.00142102]
[1727185349105,4.37444,2641.0,2640.9,0.962]
[1727185349594,4.37444,2641.0,2640.9,1.00133931]
[1727185349973,4.37444,2641.0,2640.9,0.962]
[1727185350991,6.014714,2641.0,2640.9,1.00133931]
[1727185351302,12.88316612,2641.0,2640.9,1.00133931]
[1727185351474,12.88316612,2641.0,2640.9,0.962]
[1727185352463,14.066442,2641.0,2640.9,0.962]
[1727185352970,12.88316612,2641.0,2640.9,0.962]
[1727185353162,9.80419838,2641.0,2640.9,0.962]
[1727185353365,8.190514,2641.0,2640.9,0.962]
[1727185353703,8.97999838,2641.0,2640.9,0.962]
[1727185354233,8.190514,2641.0,2640.9,0.962]
[1727185354877,8.980692,2641.0,2640.9,0.962]
[1727185355077,8.190514,2641.0,2640.9,0.962]
[1727185355287,8.980692,2641.0,2640.9,0.962]
[1727185355762,6.82444,2641.0,2640.9,0.962]
[1727185355969,0.038,2641.0,2640.9,0.962]
[1727185356190,0.038,2641.0,2640.9,1.771]
[1727185356390,0.038,2641.0,2640.9,1.81046698]
[1727185358780,0.038,2641.0,2640.9,1.771]
[1727185359103,0.038,2641.0,2640.9,1.81046187]
[1727185360011,0.038,2641.0,2640.9,5.59704187]